{"text_format":"1","workbook":"xlsx","n_sheets":5,"sheets":["Page1","AttachmentA","Groups","Codes","Data"],"not_rendered":{"charts":0,"images":0,"macros":0,"external_links":0,"defined_names":7,"comments":0,"pivot_tables":0},"unopened":[],"bounds":{"document_bytes":16777216,"sheet_cells":100000,"rows_first":2000,"rows_last":500,"rows_between":2000,"halvings":0,"cell_chars":16384,"cell_head_chars":4096},"cells_cut":0,"cells_raw":0,"read":"whole","date_system":"1900"}

{"sheet":"Page1","index":0,"n_rows":73,"n_cols":52,"rows_kept":73,"cut":false,"hidden":false,"merged":[[26,26,26,33],[34,11,34,24],[28,30,28,32],[29,30,29,32],[33,11,33,24],[27,26,27,33],[28,16,28,18],[29,16,29,18],[7,12,7,44],[8,2,8,7],[9,2,9,7],[8,12,8,47],[9,12,9,47],[7,0,7,5],[10,2,10,11],[31,16,31,18],[11,12,11,47],[30,30,30,32],[26,12,26,24],[15,17,15,44],[14,17,14,44],[20,12,20,44],[19,12,19,44],[27,12,27,24],[10,12,10,47],[17,24,17,35],[17,36,17,44],[30,16,30,18],[21,0,21,11],[24,12,24,44],[1,0,1,7],[2,44,2,47],[2,40,2,43],[1,9,1,38],[5,0,5,7],[5,8,5,39],[5,40,5,47],[3,9,3,38],[3,0,3,8],[71,7,71,47],[72,7,72,47],[64,0,64,47],[70,7,70,47],[47,37,47,47],[47,0,47,11],[65,27,67,42],[65,43,67,47],[68,27,68,47],[67,14,67,17],[66,22,66,25],[66,2,66,13],[66,14,66,17],[49,0,49,47],[50,0,50,47],[51,1,63,47],[0,9,0,40],[34,34,34,47],[35,34,35,47],[35,11,35,24],[33,34,33,47],[7,8,7,10],[8,8,8,10],[9,8,9,10],[21,12,21,44],[23,12,23,44],[22,0,22,11],[1,39,1,47],[2,8,2,39],[3,44,3,47],[6,0,6,47],[3,40,3,43],[47,12,47,17],[38,0,38,19],[38,21,38,47],[46,9,46,19],[46,21,46,30],[46,31,46,32],[43,21,43,30],[46,46,46,47],[11,6,11,10],[16,12,16,44],[40,30,40,47],[41,30,41,47],[43,34,43,43],[43,44,43,47],[43,31,43,33],[36,34,36,47],[36,11,36,24],[22,12,22,44],[23,0,23,11],[17,12,17,20],[28,37,28,41],[27,37,27,44],[24,0,24,11],[26,37,26,44]]}
[null,null,null,null,null,null,null,null,null,"UNIVERSITY of VIRGINIA"]
[null,null,null,null,null,null,null,null,null,"BUILDING PERMIT",null,null,null,null,null,null,null,null,null,null,null,null,null,null,null,null,null,null,null,null,null,null,null,null,null,null,null,null,null,"HECO-17a-TMP"]
[null,null,null,null,null,null,null,null,"FOR",null,null,null,null,null,null,null,null,null,null,null,null,null,null,null,null,null,null,null,null,null,null,null,null,null,null,null,null,null,null,null,"Issued:"]
["(Revised 02/01/2022)",null,null,null,null,null,null,null,null,"TEMPORARY STRUCTURE",null,null,null,null,null,null,null,null,null,null,null,null,null,null,null,null,null,null,null,null,null,null,null,null,null,null,null,null,null,null,"Expires:"]
[]
["PROJECT:",null,null,null,null,null,null,null,{"$f":"IF(I10>0,(I9 & \" - \" & I10 & \" - \" & I11),\"\")","v":""}]
[]
[null,null,null,null,null,null,null,null,"Code",null,null,null,"Description"]
[null,null,"Agency:",null,null,null,null,null,null,null,null,null,{"$f":"IF(I9=207,\"University of Virginia\",IF(I9=209,\"University of Virginia Medical Center\",IF(I9=246,\"University of Virginia's College at Wise\",IF(I9=948,\"Southwest Virginia Higher Education Center\",\"*****   Please enter an Agency Code to the left  *****\"))))","v":"*****   Please enter an Agency Code to the left  *****"},null,null,null,null,null,null,null,null,null,null,null,null,null,null,null,null,null,null,null,null,null,null,null,null,null,null,null,null,null,null,null,null,null,null,null,null,null,null,"Fields are color coded:"]
[null,null,"Project:",null,null,null,null,null,null,null,null,null,null,null,null,null,null,null,null,null,null,null,null,null,null,null,null,null,null,null,null,null,null,null,null,null,null,null,null,null,null,null,null,null,null,null,null,null,null,null,null,"User to enter"]
[null,null,"FIPS Code / Location:",null,null,null,null,null,null,null,null,null,null,null,null,null,null,null,null,null,null,null,null,null,null,null,null,null,null,null,null,null,null,null,null,null,null,null,null,null,null,null,null,null,null,null,null,null,null,null,null,"User to select from drop down menu"]
[null,null,"WO #:",null,null,null,null,null,null,null,null,null,null,null,null,null,null,null,null,null,null,null,null,null,null,null,null,null,null,null,null,null,null,null,null,null,null,null,null,null,null,null,null,null,null,null,null,null,null,null,null,"Auto filled or office use only"]
[]
[]
["TYPE OF TEMP. STRUCTURE: "]
["EVENT NAME: "]
["EVENT DATE(S): "]
["INSTALLED DATE:",null,null,null,null,null,null,null,null,null,null,null,null,null,null,null,null,null,null,null,null,null,null,null,"DISMANTLED DATE:"]
[]
["Temp. Structure Owner:"]
["Name of Nearest Building:"]
["Occupancy Load:"]
["Building Code Edition:",null,null,null,null,null,null,null,null,null,null,null,"VUSBC 2021 Edition"]
["Accessibility Standards:",null,null,null,null,null,null,null,null,null,null,null,"ICC A117.1-2017 Accessibility Standards"]
["Group:",null,null,null,null,null,null,null,null,null,null,null,"A"]
[]
[null,null,null,null,null,null,null,null,null,null,null,null,"Distance to Nearest Bldg or",null,null,null,null,null,null,null,null,null,null,null,null,null,"Temp. Structure",null,null,null,null,null,null,null,null,null,null,"Temp. Structure"]
[null,null,null,null,null,null,null,null,null,null,null,null,"Structure (VUSBC Table 602)",null,null,null,null,null,null,null,null,null,null,null,null,null,"Dimensions:",null,null,null,null,null,null,null,null,null,null,"Gross Area (sq. ft.)"]
[null,null,null,null,null,null,null,null,null,null,null,null,"North:",null,null,null,null,null,null," ft.",null,null,null,null,null,null,"Length:",null,null,null,null,null,null," ft.",null,null,null,null,null,null,null,null," sq. ft."]
[null,null,null,null,null,null,null,null,null,null,null,null,"South:",null,null,null,null,null,null," ft.",null,null,null,null,null,null,"Width:",null,null,null,null,null,null," ft."]
[null,null,null,null,null,null,null,null,null,null,null,null,"East:",null,null,null,null,null,null," ft.",null,null,null,null,null,null,"Height:",null,null,null,null,null,null," ft. at edge or sidewall"]
[null,null,null,null,null,null,null,null,null,null,null,null,"West:",null,null,null,null,null,null," ft."]
[]
["Type of Construction:",null,null,null,null,null,null,null,null,null,null,null,null,null,null,null,null,null,null,null,null,null,null,null,null,null,"UVA Contact:"]
["Anchorage Designed By:",null,null,null,null,null,null,null,null,null,null,null,null,null,null,null,null,null,null,null,null,null,null,null,null,null,"Agency Phone:"]
["Erected By:",null,null,null,null,null,null,null,null,null,null,null,null,null,null,null,null,null,null,null,null,null,null,null,null,null,"Agency E-mail:"]
[]
[]
["Data Applicable to Tents",null,null,null,null,null,null,null,null,null,null,null,null,null,null,null,null,null,null,null,null,"Data Applicable to Other Structures (stages, bleachers, etc.)"]
[]
["Type of Tent:",null,null,null,null,null,null,null,null,"Open Sides",null,null,null,null,null,null,null,null,null,null,null,"Manufacturer:"]
[null,null,null,null,null,null,null,null,null,"With Sidewalls (closed)",null,null,null,null,null,null,null,null,null,null,null,"Site Design By:"]
[]
["Type of Fabric:",null,null,null,null,null,null,null,null,"Noncombustible",null,null,null,null,null,null,null,null,null,null,null,"Floor Live Load (psf):",null,null,null,null,null,null,null,null,null,null,null,null,"Roof Live Load (psf):"]
[null,null,null,null,null,null,null,null,null,"Conforms to NFPA 701"]
[]
["Serial Number:",null,null,null,null,null,null,null,null,null,null,null,null,null,null,null,null,null,null,null,null,"Wind Speed (mph):",null,null,null,null,null,null,null,null,null,null,null,null,"Wind Exposure Category:"]
["or date of manufacture:",null,null,null,null,null,null,null,null,null,null,null,null,null,null,null,null,null,null,"Certificate of Flame Resistance Number:"]
[]
["SPECIAL CONDITIONS / STIPULATIONS"]
[]
[null,"*** Office Use Only ***"]
[]
[]
[]
[]
[]
[]
[]
[]
[]
[]
[]
[]
[]
["Cc:",null,"Gerald Drumheller, University Fire Marshal",null,null,null,null,null,null,null,null,null,null,null,null,null,null,null,null,null,null,null,"Approved:"]
[null,null,"Regional Fire Marshal Office - ",null,null,null,null,null,null,null,null,null,null,null,"Central"]
[null,null,"FP&C Admin (Kim Breeden)"]
[null,null,null,null,null,null,null,null,null,null,null,null,null,null,null,null,null,null,null,null,null,null,null,null,null,null,null,"University Building Official                                Date"]
[]
["Attachments:",null,null,null,null,null,null,"Site Plan; Floor Plans with Exits shown;"]
[null,null,null,null,null,null,null,"Floor Plans with Furnishing Layouts/Set-ups shown (I.e., tables, chairs, stage, food service, etc.);"]
[null,null,null,null,null,null,null,"Tent Material Certificates of Conformance with NFPA 701 for Flame Resistance, if applicable"]

{"sheet":"AttachmentA","index":1,"n_rows":5,"n_cols":10,"rows_kept":5,"cut":false,"hidden":false,"merged":[[3,9,3,10],[4,9,4,10],[3,3,3,8]]}
[]
[]
[]
[null,null,null,{"$f":"Page1!J1","v":"UNIVERSITY of VIRGINIA"},null,null,null,null,null,{"$f":"Page1!AN2","v":"HECO-17a-TMP"}]
[null,null,null,null,null,null,null,null,null,"Attachment \"A\""]

{"sheet":"Groups","index":2,"n_rows":88,"n_cols":5,"rows_kept":88,"cut":false,"hidden":false,"merged":[]}
[]
[null,"\"GROUP\" REFERENCE LIST"]
[]
[null,"  Enter all applicable Groups ( the codes only ) in the Group field on \"Page 1\"."]
[]
[null,"  Refer to the Building Code for a more complete description and examples of these classifications."]
[]
[null,null,"Code","Description"]
[null,null,"A-1","Assembly uses, usually with fixed seating, intended for the production and viewing of"]
[null,null,null,null,"performing arts or motion pictures."]
[]
[null,null,"A-2","Assembly uses intended for food and/or drink consumption."]
[]
[null,null,"A-3","Assembly uses intended for worship, recreation or amusement and other assembly uses"]
[null,null,null,null,"not classified elsewhere in Group A."]
[]
[null,null,"A-4","Assembly uses intended for viewing of indoor sporting events and activities with"]
[null,null,null,null,"spectator seating."]
[]
[null,null,"A-5","Assembly uses intended for participation in or viewing outdoor activities."]
[]
[null,null,"B","Business Group B occupancy includes, among others, the use of a building or structure"]
[null,null,null,null,"or a portion thereof, for office, professional or service-type transactions,"]
[null,null,null,null,"including storage of records and accounts."]
[]
[null,null,"E","Educational Group E occupancy includes, among others, the use of a building or structure,"]
[null,null,null,null,"or a portion thereof, by six or more persons at any one time for educational"]
[null,null,null,null,"purposes through the 12th grade."]
[]
[null,null,"F-1","Factory industrial, moderate hazard."]
[]
[null,null,"F-2","Factory industrial, low hazard."]
[]
[null,null,"H-1","High hazard. Buildings and structures containing materials that pose a detonation hazard."]
[]
[null,null,"H-2","High hazard. Building and structures containing materials that present a deflagration "]
[null,null,null,null,"hazard or hazard from accelerated burning."]
[]
[null,null,"H-3","High hazard. Buildings and structures containing materials that readily support combustion"]
[null,null,null,null,"or present a physical hazard."]
[]
[null,null,"H-4","High hazard. Buildings and structures that contain materials that are health hazards."]
[]
[null,null,"H-5","High hazard. Semiconductor fabrication facilities and comparable research and development"]
[null,null,null,null,"areas in which hazardous production materials (HPM) are used and the aggregate"]
[null,null,null,null,"quantity of materials is in excess of those listed the tables referenced in the Code."]
[]
[null,null,"I-1","Institutional. This occupancy shall include a buildin or portion thereof housing more than 16"]
[null,null,null,null,"persons, on a 24-hour basis, who because of age, mental disability or other reasons,"]
[null,null,null,null,"live in a supervised residential environment that provides personal care services.  The"]
[null,null,null,null,"occupants are capable of responding to an emergency situation without physical"]
[null,null,null,null,"assistance from the staff."]
[]
[null,null,"I-2","Institutional. This occupancy shall include buildings and structures used for medical, surgical,"]
[null,null,null,null,"psychiatric, nursing or custodial care on a 24-hour basis of more than 5 persons who"]
[null,null,null,null,"are not capable of self-preservation."]
[]
[null,null,"I-3","Institutional. This occupancy shall include buildings and structures that are inhabited by more than"]
[null,null,null,null,"5 persons who are under restraint or security."]
[]
[null,null,"I-4","Institutional. This occupancy shall include buildings and structures occupied by persons of any age"]
[null,null,null,null,"who receive custodial care for less than 24 hours by individuals other than parents or"]
[null,null,null,null,"guardians, relatives by blood, marriage, or adoption, and in aplace other than the home of"]
[null,null,null,null,"the person cared for."]
[]
[null,null,"M","Mercantile.  This occupancy includes, among others, buildings and structures or a portion thereof,"]
[null,null,null,null,"for the display and sale of merchandise, and involves stocks of goods, wares or merchandise"]
[null,null,null,null,"incidental to such purposes and accessible to the public."]
[]
[null,null,"R-1","Residential, hotels, motels, boarding houses (transient)."]
[]
[null,null,"R-2","Residential, multiple family (e.g., apartment houses, non-transient boarding houses, convents,"]
[null,null,null,null,"dormitories, fraternities, sororities, monasteries."]
[]
[null,null,"R-3","Residential, one- and two-family dwelling units, adult and childcare facilities for five or fewer"]
[null,null,null,null,"persons of any age for less than 24 hours."]
[]
[null,null,"R-4","Buildings arranged for occupancy as Residential Care/Assisted Living Facilities including more"]
[null,null,null,null,"than 5 but not more than 16 occupants, excluding staff."]
[]
[null,null,"R-5","Detached one and two-family dwellings and multiple single-family dwellings (townhouses) not more"]
[null,null,null,null,"than three stories high with separate means of egress and their accessory structures."]
[]
[null,null,"S-1","Storage, moderate hazard.  Buildings occupied for storage uses which are not classified as Group S-2."]
[]
[null,null,"S-2","Storage, low hazard.  Buildings used for the storage of noncombustible materials."]
[]
[null,null,"U","Utility and Miscellaneous."]

{"sheet":"Codes","index":3,"n_rows":11,"n_cols":3,"rows_kept":11,"cut":false,"hidden":true,"merged":[]}
["FIPS","CONSTRUCTION_TYPE","TEMP_STRUCT_TYPE"]
["003 - Albemarle Co.","IA","AMUSEMENT DEVICE"]
["540 - Charlottesville, City Of","IB","BLEACHERS/GRANDSTANDS"]
["043 - Clarke Co.","IIA","OTHER TEMPORARY STRUCTURES"]
["131 - Northampton Co.","IIB","PORTABLE BUILDINGS"]
["195 - Wise Co.","IIIA","STAGE/PLATFORM/PODIUM"]
["999 - Unknown Or Multiple Locations","IIIB","TENT"]
[null,"IV"]
[null,"VA"]
[null,"VB"]
[null,"N/A"]

{"sheet":"Data","index":4,"n_rows":165,"n_cols":7,"rows_kept":165,"cut":false,"hidden":false,"merged":[]}
["BUILDING TYPE","TEMPORARY FACILITY"]
["FORM TYPE","PERMIT",null,null,3,"003 - Albemarle Co.","West"]
[null,null,null,null,15,"Augusta","West"]
["PROJECT",null,null,null,31,"Campbell","West"]
["Agency Code",{"$f":"TEXT(Page1!I9,\"000\")","v":"000"},null,null,43,"043 - Clarke Co.","West"]
["Project Num",{"$f":"TEXT(Page1!I10,\"00000\")","v":"00000"},null,null,71,"Giles","West"]
["Subproject Num",{"$f":"TEXT(Page1!I11,\"000\")","v":"000"},null,null,131,"131 - Northampton Co.","East"]
["Subproject Title",{"$f":"UPPER(Page1!M11)","v":""},null,null,137,"Orange"]
[null,null,null,null,195,"195 - Wise Co.","West"]
["TEMPORARY FACILITY INFO",null,null,null,540,"540 - Charlottesville, City Of","West"]
["Type of Temp Structure",{"$f":"\"TMP-\" & LEFT(Page1!R15,1)","v":"TMP-"},null,null,610,"Falls Church"]
["Event Name",{"$f":"UPPER(Page1!R16)","v":""}]
["Event Dates",{"$f":"UPPER(Page1!R18)","v":""}]
["Building FIPS",{"$f":"LEFT(Page1!M12,3)","v":""}]
["Building Location"]
["Temporary Structure Owner",{"$f":"UPPER(Page1!M20)","v":""}]
["Nearest Building",{"$f":"UPPER(Page1!M21)","v":""}]
["Occupancy Load",{"$f":"UPPER(Page1!M22)","v":""}]
["Occupancy Remarks"]
["Code Edition",{"$f":"UPPER(Page1!M23)","v":"VUSBC 2021 EDITION"}]
["Code Modifications"]
["Use Group",{"$f":"UPPER(Page1!M25)","v":"A"}]
["Distance N",{"$f":"UPPER(Page1!Q29)","v":""}]
["Distance S",{"$f":"UPPER(Page1!Q30)","v":""}]
["Distance E",{"$f":"UPPER(Page1!Q31)","v":""}]
["Distance W",{"$f":"UPPER(Page1!Q32)","v":""}]
["Length",{"$f":"UPPER(Page1!AE29)","v":""}]
["Width",{"$f":"UPPER(Page1!AE30)","v":""}]
["Height",{"$f":"UPPER(Page1!AE31)","v":""}]
["Gross Area",{"$f":"UPPER(Page1!AL29)","v":""}]
["Access Designed By",{"$f":"UPPER(Page1!L35)","v":""}]
["Anchorage Designed By",{"$f":"UPPER(Page1!L36)","v":""}]
["Anchorage Method",{"$f":"UPPER(Page1!#REF!)","v":{"$error":"#REF!"}}]
["Erected By",{"$f":"UPPER(Page1!L37)","v":""}]
["Description"]
["Function/Activity"]
["Agency Contact Person",{"$f":"UPPER(Page1!AI34)","v":""}]
["Agency Contact Phone",{"$f":"UPPER(Page1!AI35)","v":""}]
["User Resp Person",{"$f":"UPPER(Page1!#REF!)","v":{"$error":"#REF!"}}]
["User Resp Phone",{"$f":"UPPER(Page1!#REF!)","v":{"$error":"#REF!"}}]
[]
["Data Applicable to Tents"]
["Type of Tent - Type Open",{"$f":"IF(Page1!H41=\"\",\"N\",\"X\")","v":"N"}]
["Type of Tent - Type Closed",{"$f":"IF(Page1!H42=\"\",\"N\",\"X\")","v":"N"}]
["Type of Fabric - NonCombustible",{"$f":"IF(Page1!H44=\"\",\"N\",\"X\")","v":"N"}]
["Type of Fabric - NFPA 701",{"$f":"IF(Page1!H45=\"\",\"N\",\"X\")","v":"N"}]
["Serial Number",{"$f":"UPPER(Page1!J47)","v":""}]
["Certificate of Flame Resistance #",{"$f":"UPPER(Page1!AL48)","v":""}]
[]
["Data Applicable to Other Struc"]
["Closed Engr System",{"$f":"IF(Page1!#REF!=\"\",\"N\",\"X\")","v":{"$error":"#REF!"}}]
["Site Specific Design",{"$f":"IF(Page1!#REF!=\"\",\"N\",\"X\")","v":{"$error":"#REF!"}}]
["Construction Type",{"$f":"UPPER(Page1!L34)","v":""}]
["Wind Speed",{"$f":"UPPER(Page1!AU44)","v":""}]
["Wind Exposure Category",{"$f":"UPPER(Page1!AU47)","v":""}]
["Floor Live Load",{"$f":"UPPER(Page1!AF44)","v":""}]
["Roof Live Load",{"$f":"UPPER(Page1!AF47)","v":""}]
["Site Specific Designer",{"$f":"UPPER(Page1!#REF!)","v":{"$error":"#REF!"}}]
["Type - 2C"]
["Type - 5B"]
["Type - Other"]
["Type - Other Description"]
["Attachments",{"$f":"Page1!H71&\"; \"&Page1!H72&\"; \"&Page1!H73","v":"Site Plan; Floor Plans with Exits shown;; Floor Plans with Furnishing Layouts/Set-ups shown (I.e., tables, chairs, stage, food service, etc.);; Tent Material Certificates of Conformance with NFPA 701 for Flame Resistance, if applicable"}]
["Temporary Fabric"]
[]
["PERMIT INFO"]
["Issue Date",{"$f":"IF(Page1!AS3=0,\"\",Page1!AS3)","v":""}]
["Expiration Date",{"$f":"IF(Page1!AS4=0,\"\",Page1!AS4)","v":""}]
[]
[]
[]
[]
[]
[]
[]
[]
[]
[]
[]
[]
[]
[]
[]
[]
[]
[]
[]
[]
[]
[]
[]
[]
[]
[]
[]
[]
[]
[]
[]
[]
[]
[]
[]
[]
[]
[]
[]
[]
[]
[]
[]
[]
[]
[]
[]
[]
[]
[]
[]
[]
[]
[]
[]
[]
[]
[]
[]
[]
[]
[]
[]
[]
[]
[]
[]
[]
[]
[]
[]
[]
[]
[]
[]
[]
[]
[]
[]
[]
[]
[]
[]
[]
[]
[]
[]
[]
[]
[]
[]
[]
[]
[]
[]
[]
[null,null,null,null,"(Data Center)"]